[Event "Late-Titled-Tuesday-Blitz-October-10-2023"]
[Site "Chess.com"]
[Date "2023.10.10"]
[Round "5"]
[White "angryspacevoid"]
[Black "Walter_White_Poland"]
[Result "1/2-1/2"]
[WhiteElo "2537"]
[BlackElo "2340"]
[TimeControl "180+1"]
[EndTime "14:54:26 PDT"]
[Termination "Game drawn - insufficient material"]

1. d4 {[%clk 0:02:58.8]} 1... Nf6 {[%clk 0:02:58.5]} 2. c4 {[%clk 0:02:54.5]}
2... e6 {[%clk 0:02:58]} 3. Nf3 {[%clk 0:02:53.1]} 3... c5 {[%clk 0:02:57.2]} 4.
g3 {[%clk 0:02:51.4]} 4... cxd4 {[%clk 0:02:55.7]} 5. Nxd4 {[%clk 0:02:49.8]}
5... d5 {[%clk 0:02:55.9]} 6. cxd5 {[%clk 0:02:46.9]} 6... Qxd5 {[%clk
0:02:55.4]} 7. Rg1 {[%clk 0:02:43.5]} 7... e5 {[%clk 0:02:52.9]} 8. Nb3 {[%clk
0:02:32]} 8... Qxd1+ {[%clk 0:02:52.4]} 9. Kxd1 {[%clk 0:02:32.9]} 9... Nc6
{[%clk 0:02:48.8]} 10. Nc3 {[%clk 0:02:27.7]} 10... Bf5 {[%clk 0:02:44.7]} 11.
a3 {[%clk 0:02:17.6]} 11... O-O-O+ {[%clk 0:02:43.5]} 12. Ke1 {[%clk 0:02:14.8]}
12... Bc2 {[%clk 0:02:24.6]} 13. Nd2 {[%clk 0:02:11.7]} 13... e4 {[%clk
0:02:11.6]} 14. Bg2 {[%clk 0:02:06.2]} 14... e3 {[%clk 0:02:02.4]} 15. fxe3
{[%clk 0:02:05.2]} 15... Bc5 {[%clk 0:02:01.1]} 16. Nf1 {[%clk 0:01:58.4]} 16...
Rhe8 {[%clk 0:01:55.2]} 17. Bd2 {[%clk 0:01:52]} 17... Bb3 {[%clk 0:01:32.3]}
18. Rc1 {[%clk 0:01:43.8]} 18... Kb8 {[%clk 0:01:31.4]} 19. h3 {[%clk
0:01:35.5]} 19... Bb6 {[%clk 0:01:14.6]} 20. Rh1 {[%clk 0:01:20]} 20... Na5
{[%clk 0:01:12.9]} 21. e4 {[%clk 0:01:16.7]} 21... Ka8 {[%clk 0:01:05.7]} 22.
Ne3 {[%clk 0:01:13.7]} 22... Nh5 {[%clk 0:00:42.5]} 23. Ncd5 {[%clk 0:01:01.2]}
23... Nxg3 {[%clk 0:00:35.5]} 24. Rh2 {[%clk 0:00:57]} 24... Nxe4 {[%clk
0:00:33.1]} 25. Bxe4 {[%clk 0:00:50]} 25... Rxe4 {[%clk 0:00:32.6]} 26. Nxb6+
{[%clk 0:00:46]} 26... axb6 {[%clk 0:00:32.1]} 27. Rg2 {[%clk 0:00:39.8]} 27...
g6 {[%clk 0:00:25.9]} 28. Rg4 {[%clk 0:00:31.4]} 28... Rxg4 {[%clk 0:00:20]} 29.
hxg4 {[%clk 0:00:32.3]} 29... Nc6 {[%clk 0:00:17.5]} 30. g5 {[%clk 0:00:29]}
30... Ne5 {[%clk 0:00:15]} 31. Rc7 {[%clk 0:00:25.4]} 31... Rd7 {[%clk
0:00:15.2]} 32. Rc8+ {[%clk 0:00:22.2]} 32... Ka7 {[%clk 0:00:14.8]} 33. Bc3
{[%clk 0:00:22.8]} 33... Nc6 {[%clk 0:00:13.9]} 34. Ng4 {[%clk 0:00:20.1]} 34...
Be6 {[%clk 0:00:13.2]} 35. Nf6 {[%clk 0:00:19.3]} 35... Rd8 {[%clk 0:00:11.2]}
36. Rxd8 {[%clk 0:00:19.3]} 36... Nxd8 {[%clk 0:00:11.6]} 37. Nxh7 {[%clk
0:00:19.7]} 37... b5 {[%clk 0:00:12.1]} 38. Bd4+ {[%clk 0:00:19.5]} 38... Kb8
{[%clk 0:00:11.3]} 39. Nf6 {[%clk 0:00:19.8]} 39... Nc6 {[%clk 0:00:11.1]} 40.
Bc5 {[%clk 0:00:19.5]} 40... Kc7 {[%clk 0:00:10.8]} 41. Ne8+ {[%clk 0:00:19.2]}
41... Kd7 {[%clk 0:00:10.6]} 42. Nf6+ {[%clk 0:00:18.8]} 42... Kc7 {[%clk
0:00:11]} 43. Bf8 {[%clk 0:00:17.4]} 43... b6 {[%clk 0:00:10.6]} 44. Ne8+ {[%clk
0:00:16.7]} 44... Kd8 {[%clk 0:00:10.3]} 45. Nd6 {[%clk 0:00:16.7]} 45... Bc4
{[%clk 0:00:09.2]} 46. Kd2 {[%clk 0:00:14.1]} 46... Ne5 {[%clk 0:00:08.1]} 47.
Bg7 {[%clk 0:00:12.6]} 47... Ng4 {[%clk 0:00:05.9]} 48. e4 {[%clk 0:00:09.8]}
48... Kd7 {[%clk 0:00:05.7]} 49. Nxc4 {[%clk 0:00:09.6]} 49... bxc4 {[%clk
0:00:05.9]} 50. Bd4 {[%clk 0:00:10.3]} 50... Kc6 {[%clk 0:00:05.4]} 51. Kc3
{[%clk 0:00:10.2]} 51... b5 {[%clk 0:00:05.7]} 52. a4 {[%clk 0:00:10.3]} 52...
bxa4 {[%clk 0:00:05]} 53. Kxc4 {[%clk 0:00:10.7]} 53... Nh2 {[%clk 0:00:04.3]}
54. Kb4 {[%clk 0:00:10.1]} 54... Nf3 {[%clk 0:00:04.6]} 55. Bc3 {[%clk
0:00:10.3]} 55... Nxg5 {[%clk 0:00:04.2]} 56. e5 {[%clk 0:00:09.7]} 56... Ne4
{[%clk 0:00:04.2]} 57. Bd4 {[%clk 0:00:10.3]} 57... g5 {[%clk 0:00:04.1]} 58.
Kxa4 {[%clk 0:00:10.8]} 58... Kd5 {[%clk 0:00:04.2]} 59. Bg1 {[%clk 0:00:08.4]}
59... Kxe5 {[%clk 0:00:04.2]} 60. b4 {[%clk 0:00:09.1]} 60... Kd5 {[%clk
0:00:04.5]} 61. b5 {[%clk 0:00:08.7]} 61... Nc3+ {[%clk 0:00:04.7]} 62. Kb4
{[%clk 0:00:08.5]} 62... Nxb5 {[%clk 0:00:05.6]} 63. Kxb5 {[%clk 0:00:08.7]}
63... f5 {[%clk 0:00:03]} 64. Bh2 {[%clk 0:00:03.6]} 64... f4 {[%clk 0:00:02.8]}
65. Kb4 {[%clk 0:00:04.1]} 65... Ke4 {[%clk 0:00:03]} 66. Kc3 {[%clk 0:00:04.4]}
66... g4 {[%clk 0:00:03.9]} 67. Kd2 {[%clk 0:00:04.4]} 67... g3 {[%clk
0:00:04.8]} 68. Bg1 {[%clk 0:00:04.2]} 68... f3 {[%clk 0:00:05.2]} 69. Ke1
{[%clk 0:00:04.7]} 69... Kd3 {[%clk 0:00:05.5]} 70. Bf2 {[%clk 0:00:03.8]} 70...
g2 {[%clk 0:00:04.2]} 71. Bg1 {[%clk 0:00:04.2]} 71... Ke4 {[%clk 0:00:05.1]}
72. Kf2 {[%clk 0:00:04.6]} 72... Kf5 {[%clk 0:00:06]} 73. Kxf3 {[%clk
0:00:05.1]} 73... Kg6 {[%clk 0:00:05.4]} 74. Kg3 {[%clk 0:00:05.8]} 74... Kf7
{[%clk 0:00:04.6]} 75. Kf3 {[%clk 0:00:06.5]} 75... Ke8 {[%clk 0:00:04.7]} 76.
Kg3 {[%clk 0:00:07.2]} 76... Kd7 {[%clk 0:00:03]} 77. Kf3 {[%clk 0:00:08.1]}
77... Kc8 {[%clk 0:00:01.6]} 78. Ke4 {[%clk 0:00:08.7]} 78... Kd7 {[%clk
0:00:01.2]} 79. Kf3 {[%clk 0:00:09.2]} 79... Kc8 {[%clk 0:00:01.3]} 80. Kf4
{[%clk 0:00:10.1]} 80... Kd7 {[%clk 0:00:01.5]} 81. Kg4 {[%clk 0:00:10.5]} 81...
Kc6 {[%clk 0:00:02.4]} 82. Kf3 {[%clk 0:00:10.9]} 82... Kb5 {[%clk 0:00:03.3]}
83. Kf4 {[%clk 0:00:11.3]} 83... Kc4 {[%clk 0:00:04.2]} 84. Kg3 {[%clk
0:00:11.7]} 84... Kd3 {[%clk 0:00:05.1]} 85. Kf2 {[%clk 0:00:12.1]} 85... Kd2
{[%clk 0:00:06]} 86. Kf3 {[%clk 0:00:12.3]} 86... Ke1 {[%clk 0:00:06.9]} 87. Kg3
{[%clk 0:00:11.8]} 87... Kf1 {[%clk 0:00:07.8]} 88. Kh2 {[%clk 0:00:12.5]} 88...
Ke2 {[%clk 0:00:06.6]} 89. Ba7 {[%clk 0:00:13.1]} 89... Kf1 {[%clk 0:00:07.5]}
90. Bg1 {[%clk 0:00:12.9]} 90... Ke2 {[%clk 0:00:07.1]} 91. Kxg2 {[%clk
0:00:09]} 1/2-1/2

[Event "Late-Titled-Tuesday-Blitz-October-10-2023"]
[Site "Chess.com"]
[Date "2023.10.10"]
[Round "5"]
[White "GianmarcoVaR"]
[Black "koncheto"]
[Result "1/2-1/2"]
[WhiteElo "2665"]
[BlackElo "2496"]
[TimeControl "180+1"]
[EndTime "14:54:38 PDT"]
[Termination "Game drawn - insufficient material"]

1. e4 {[%clk 0:02:48.5]} 1... c5 {[%clk 0:02:58.8]} 2. Nf3 {[%clk 0:02:48.7]}
2... d6 {[%clk 0:02:58.9]} 3. c3 {[%clk 0:02:38.9]} 3... Nf6 {[%clk 0:02:58.7]}
4. Bd3 {[%clk 0:02:39]} 4... g6 {[%clk 0:02:58.3]} 5. O-O {[%clk 0:02:36.4]}
5... Bg4 {[%clk 0:02:58.2]} 6. Bc2 {[%clk 0:02:32.1]} 6... Nc6 {[%clk
0:02:55.4]} 7. h3 {[%clk 0:02:27.5]} 7... Bxf3 {[%clk 0:02:55.4]} 8. Qxf3 {[%clk
0:02:28]} 8... Bg7 {[%clk 0:02:55.6]} 9. Qe2 {[%clk 0:02:24.6]} 9... a6 {[%clk
0:02:51.4]} 10. a4 {[%clk 0:02:21.7]} 10... Rb8 {[%clk 0:02:51.1]} 11. d3 {[%clk
0:02:21.9]} 11... b5 {[%clk 0:02:50.3]} 12. axb5 {[%clk 0:02:22.5]} 12... axb5
{[%clk 0:02:51.2]} 13. Nd2 {[%clk 0:02:23.1]} 13... b4 {[%clk 0:02:48.1]} 14.
Nc4 {[%clk 0:02:12]} 14... O-O {[%clk 0:02:45.7]} 15. Bf4 {[%clk 0:01:30.4]}
15... Nd7 {[%clk 0:02:34.1]} 16. Qd2 {[%clk 0:01:28.1]} 16... bxc3 {[%clk
0:02:14.5]} 17. bxc3 {[%clk 0:01:28]} 17... Nb6 {[%clk 0:02:02.8]} 18. Bb3
{[%clk 0:01:19.9]} 18... Nxc4 {[%clk 0:01:40.1]} 19. Bxc4 {[%clk 0:01:19.1]}
19... Ne5 {[%clk 0:01:41]} 20. Bxe5 {[%clk 0:01:00.9]} 20... Bxe5 {[%clk
0:01:41.9]} 21. f4 {[%clk 0:01:00.9]} 21... Bg7 {[%clk 0:01:36.7]} 22. f5 {[%clk
0:01:01.4]} 22... Qb6 {[%clk 0:01:30.5]} 23. Rf2 {[%clk 0:00:43.8]} 23... Kh8
{[%clk 0:00:58.5]} 24. Raf1 {[%clk 0:00:40.3]} 24... Qa5 {[%clk 0:00:44.9]} 25.
fxg6 {[%clk 0:00:35.6]} 25... fxg6 {[%clk 0:00:39.9]} 26. Rxf8+ {[%clk
0:00:35.7]} 26... Rxf8 {[%clk 0:00:34.7]} 27. Rxf8+ {[%clk 0:00:36.2]} 27...
Bxf8 {[%clk 0:00:35.6]} 28. Qf4 {[%clk 0:00:32.1]} 28... Bg7 {[%clk 0:00:28]}
29. Qf7 {[%clk 0:00:31.4]} 29... Qd8 {[%clk 0:00:27.8]} 30. Be6 {[%clk
0:00:05.9]} 30... Bxc3 {[%clk 0:00:13.3]} 31. h4 {[%clk 0:00:06]} 31... Bg7
{[%clk 0:00:07.7]} 32. h5 {[%clk 0:00:06.3]} 32... gxh5 {[%clk 0:00:07.5]} 33.
Qxh5 {[%clk 0:00:06.5]} 33... Qf8 {[%clk 0:00:03.9]} 34. Bf5 {[%clk 0:00:07.1]}
34... h6 {[%clk 0:00:04.2]} 35. Qg6 {[%clk 0:00:07.8]} 35... Kg8 {[%clk
0:00:04.1]} 36. Qh7+ {[%clk 0:00:07.7]} 36... Kf7 {[%clk 0:00:04.6]} 37. Qg6+
{[%clk 0:00:08.4]} 37... Kg8 {[%clk 0:00:05.1]} 38. Qh7+ {[%clk 0:00:07.8]}
38... Kf7 {[%clk 0:00:05.6]} 39. Bg6+ {[%clk 0:00:08.4]} 39... Kf6 {[%clk
0:00:05.9]} 40. Bh5 {[%clk 0:00:09.1]} 40... e6 {[%clk 0:00:02.3]} 41. Qg6+
{[%clk 0:00:07.3]} 41... Ke7 {[%clk 0:00:02.9]} 42. Bg4 {[%clk 0:00:03.1]} 42...
Bd4+ {[%clk 0:00:01.8]} 43. Kh2 {[%clk 0:00:02.9]} 43... Qf4+ {[%clk 0:00:02]}
44. Kh3 {[%clk 0:00:02.8]} 44... Qf6 {[%clk 0:00:02.2]} 45. Qh7+ {[%clk
0:00:02.9]} 45... Qg7 {[%clk 0:00:02.7]} 46. Qxg7+ {[%clk 0:00:02.7]} 46... Bxg7
{[%clk 0:00:03.6]} 47. Kg3 {[%clk 0:00:02.9]} 47... Be5+ {[%clk 0:00:03.2]} 48.
Kf3 {[%clk 0:00:03.5]} 48... Kf6 {[%clk 0:00:03.5]} 49. Ke3 {[%clk 0:00:03.8]}
49... Bd4+ {[%clk 0:00:03.8]} 50. Kf3 {[%clk 0:00:04.1]} 50... d5 {[%clk
0:00:04.2]} 51. exd5 {[%clk 0:00:04.3]} 51... exd5 {[%clk 0:00:05.1]} 52. Ke2
{[%clk 0:00:04.2]} 52... Ke5 {[%clk 0:00:05.4]} 53. Bh5 {[%clk 0:00:04.3]} 53...
Bg1 {[%clk 0:00:05.5]} 54. Bg6 {[%clk 0:00:04.1]} 54... Kd4 {[%clk 0:00:05.9]}
55. Bf7 {[%clk 0:00:04.2]} 55... c4 {[%clk 0:00:05.8]} 56. dxc4 {[%clk
0:00:04.7]} 56... dxc4 {[%clk 0:00:06.7]} 57. Kd2 {[%clk 0:00:05.2]} 57... Be3+
{[%clk 0:00:06.3]} 58. Kc2 {[%clk 0:00:05.6]} 58... Bf4 {[%clk 0:00:06.6]} 59.
Bh5 {[%clk 0:00:05.9]} 59... Bd6 {[%clk 0:00:06.5]} 60. Bf3 {[%clk 0:00:06.8]}
60... Bb4 {[%clk 0:00:06.7]} 61. Bh5 {[%clk 0:00:07.7]} 61... Ke3 {[%clk
0:00:07.1]} 62. Bf3 {[%clk 0:00:08.6]} 62... Kf2 {[%clk 0:00:06.4]} 63. Bd5
{[%clk 0:00:09.2]} 63... c3 {[%clk 0:00:06]} 64. Bf3 {[%clk 0:00:09.8]} 64... h5
{[%clk 0:00:06.2]} 65. Kb3 {[%clk 0:00:10.2]} 65... h4 {[%clk 0:00:05.4]} 66.
Be4 {[%clk 0:00:10.2]} 66... Ba5 {[%clk 0:00:03.7]} 67. Ka4 {[%clk 0:00:09]}
67... Bc7 {[%clk 0:00:03.3]} 68. Kb4 {[%clk 0:00:09.2]} 68... Be5 {[%clk
0:00:03.9]} 69. Kb3 {[%clk 0:00:09.4]} 69... Bf6 {[%clk 0:00:03.8]} 70. Kc2
{[%clk 0:00:09.1]} 70... Bd4 {[%clk 0:00:04.3]} 71. Bd5 {[%clk 0:00:08.8]} 71...
Kg1 {[%clk 0:00:04]} 72. Be4 {[%clk 0:00:06.7]} 72... Kf2 {[%clk 0:00:03.9]} 73.
Kd3 {[%clk 0:00:07.3]} 73... Bf6 {[%clk 0:00:01.2]} 74. Bd5 {[%clk 0:00:04.1]}
74... Kg3 {[%clk 0:00:02.1]} 75. Be4 {[%clk 0:00:03.2]} 75... Kf4 {[%clk
0:00:03]} 76. Bd5 {[%clk 0:00:01.9]} 76... Bh8 {[%clk 0:00:03.2]} 77. Bb3 {[%clk
0:00:01.7]} 77... Be5 {[%clk 0:00:03.3]} 78. Ke2 {[%clk 0:00:01.9]} 78... Kg3
{[%clk 0:00:03.4]} 79. Kf1 {[%clk 0:00:02.6]} 79... Kf4 {[%clk 0:00:03.4]} 80.
Ke2 {[%clk 0:00:02.5]} 80... Bd4 {[%clk 0:00:03.9]} 81. Kd3 {[%clk 0:00:02.6]}
81... Kg3 {[%clk 0:00:04.3]} 82. Bd5 {[%clk 0:00:02.4]} 82... Be5 {[%clk
0:00:04.1]} 83. Be4 {[%clk 0:00:02.8]} 83... Bf6 {[%clk 0:00:03.9]} 84. Kc2
{[%clk 0:00:02.9]} 84... Bd4 {[%clk 0:00:04.3]} 85. Kd3 {[%clk 0:00:03.5]} 85...
Kf2 {[%clk 0:00:04.9]} 86. Kxd4 {[%clk 0:00:03.7]} 86... c2 {[%clk 0:00:04.5]}
87. Bxc2 {[%clk 0:00:02.8]} 87... Kxg2 {[%clk 0:00:05.4]} 88. Ke3 {[%clk
0:00:03.1]} 88... h3 {[%clk 0:00:05.6]} 89. Be4+ {[%clk 0:00:04]} 89... Kg3
{[%clk 0:00:05.6]} 90. Bh1 {[%clk 0:00:04.5]} 90... h2 {[%clk 0:00:06.1]} 91.
Ke2 {[%clk 0:00:05.1]} 91... Kh3 {[%clk 0:00:06.6]} 92. Kf3 {[%clk 0:00:05.5]}
92... Kh4 {[%clk 0:00:07.5]} 93. Kf4 {[%clk 0:00:06.2]} 93... Kh5 {[%clk
0:00:08.4]} 94. Bf3+ {[%clk 0:00:06.7]} 94... Kg6 {[%clk 0:00:07.8]} 95. Kg3
{[%clk 0:00:06.9]} 95... Kf6 {[%clk 0:00:08.2]} 96. Bh1 {[%clk 0:00:07.4]} 96...
Ke6 {[%clk 0:00:08.1]} 97. Kxh2 {[%clk 0:00:08.3]} 1/2-1/2

[Event "Late-Titled-Tuesday-Blitz-October-10-2023"]
[Site "Chess.com"]
[Date "2023.10.10"]
[Round "5"]
[White "Atanejhad"]
[Black "K_alena13"]
[Result "1-0"]
[WhiteElo "2386"]
[BlackElo "2147"]
[TimeControl "180+1"]
[EndTime "14:54:39 PDT"]
[Termination "Atanejhad won on time"]

1. d4 {[%clk 0:03:00.9]} 1... d5 {[%clk 0:02:59.6]} 2. c4 {[%clk 0:03:00.6]}
2... dxc4 {[%clk 0:03:00]} 3. e4 {[%clk 0:02:59.4]} 3... b5 {[%clk 0:02:59.1]}
4. a4 {[%clk 0:02:55.6]} 4... c6 {[%clk 0:02:58.6]} 5. axb5 {[%clk 0:02:55.5]}
5... cxb5 {[%clk 0:02:59.5]} 6. b3 {[%clk 0:02:55.8]} 6... e6 {[%clk 0:02:53.5]}
7. bxc4 {[%clk 0:02:55]} 7... bxc4 {[%clk 0:02:54.4]} 8. Bxc4 {[%clk 0:02:53.5]}
8... Nf6 {[%clk 0:02:53.5]} 9. e5 {[%clk 0:02:50]} 9... Nd5 {[%clk 0:02:50]} 10.
Nf3 {[%clk 0:02:44.5]} 10... Bb4+ {[%clk 0:02:45.2]} 11. Bd2 {[%clk 0:02:43.9]}
11... Bxd2+ {[%clk 0:02:45.1]} 12. Nbxd2 {[%clk 0:02:41.9]} 12... O-O {[%clk
0:02:44.9]} 13. O-O {[%clk 0:02:40]} 13... a5 {[%clk 0:02:40]} 14. Ne4 {[%clk
0:02:35.1]} 14... Ba6 {[%clk 0:02:35.3]} 15. Bxa6 {[%clk 0:02:19.4]} 15... Nxa6
{[%clk 0:02:34.3]} 16. Nfg5 {[%clk 0:01:59]} 16... h6 {[%clk 0:02:08.2]} 17. Nf3
{[%clk 0:01:43.5]} 17... Nab4 {[%clk 0:02:03.4]} 18. Nc5 {[%clk 0:01:39.6]}
18... Qe7 {[%clk 0:01:45.7]} 19. Qe2 {[%clk 0:01:38.1]} 19... Rfd8 {[%clk
0:01:43.3]} 20. g3 {[%clk 0:01:34.7]} 20... Nc6 {[%clk 0:01:31.1]} 21. Qc4
{[%clk 0:01:30.6]} 21... Ndb4 {[%clk 0:01:17.3]} 22. Rfd1 {[%clk 0:01:26.3]}
22... Rd5 {[%clk 0:01:09.6]} 23. Na4 {[%clk 0:01:25.6]} 23... Qc7 {[%clk
0:00:58.3]} 24. Nc3 {[%clk 0:01:19.3]} 24... Rd7 {[%clk 0:00:47.9]} 25. Nb5
{[%clk 0:01:18.8]} 25... Qb6 {[%clk 0:00:42]} 26. Nd6 {[%clk 0:01:18.7]} 26...
Rc7 {[%clk 0:00:36.6]} 27. Qe2 {[%clk 0:01:15.2]} 27... Ne7 {[%clk 0:00:32.3]}
28. Rdb1 {[%clk 0:01:11.7]} 28... Ned5 {[%clk 0:00:28.4]} 29. Rb3 {[%clk
0:01:11]} 29... Qc6 {[%clk 0:00:22.6]} 30. Qe4 {[%clk 0:00:58.3]} 30... Qc2
{[%clk 0:00:17]} 31. Qxc2 {[%clk 0:00:54.9]} 31... Rxc2 {[%clk 0:00:17.9]} 32.
Rba3 {[%clk 0:00:52.4]} 32... Rc3 {[%clk 0:00:18]} 33. Nb5 {[%clk 0:00:46.5]}
33... Rxa3 {[%clk 0:00:17.6]} 34. Rxa3 {[%clk 0:00:47.4]} 34... Kf8 {[%clk
0:00:16.2]} 35. Nd2 {[%clk 0:00:46.3]} 35... Ke7 {[%clk 0:00:15.4]} 36. Nc4
{[%clk 0:00:46.2]} 36... a4 {[%clk 0:00:14.4]} 37. Nbd6 {[%clk 0:00:40.2]} 37...
Nc2 {[%clk 0:00:13.6]} 38. Ra2 {[%clk 0:00:37]} 38... Nxd4 {[%clk 0:00:12.6]}
39. f4 {[%clk 0:00:31.8]} 39... a3 {[%clk 0:00:09.5]} 40. Rxa3 {[%clk
0:00:31.1]} 40... Rxa3 {[%clk 0:00:08.4]} 41. Nxa3 {[%clk 0:00:32]} 41... f6
{[%clk 0:00:08.2]} 42. Ndc4 {[%clk 0:00:30.8]} 42... fxe5 {[%clk 0:00:07.2]} 43.
Nxe5 {[%clk 0:00:31.7]} 43... Kf6 {[%clk 0:00:06.4]} 44. Nac4 {[%clk 0:00:30.1]}
44... Nb3 {[%clk 0:00:06]} 45. Nd6 {[%clk 0:00:29.2]} 45... Nc5 {[%clk
0:00:05.8]} 46. Kg2 {[%clk 0:00:27.9]} 46... Ke7 {[%clk 0:00:05]} 47. Ndc4
{[%clk 0:00:27]} 47... Ne4 {[%clk 0:00:05]} 48. h3 {[%clk 0:00:26]} 48... Nd6
{[%clk 0:00:05.1]} 49. Ng6+ {[%clk 0:00:24.6]} 49... Kd7 {[%clk 0:00:04.6]} 50.
Nce5+ {[%clk 0:00:23.5]} 50... Ke8 {[%clk 0:00:04]} 51. Kf3 {[%clk 0:00:20.6]}
51... Nf5 {[%clk 0:00:04.2]} 52. Nc4 {[%clk 0:00:20.4]} 52... Nf6 {[%clk
0:00:03.9]} 53. Nge5 {[%clk 0:00:19.5]} 53... Ke7 {[%clk 0:00:03.9]} 54. g4
{[%clk 0:00:15.7]} 54... Nd4+ {[%clk 0:00:03.8]} 55. Ke3 {[%clk 0:00:13.3]}
55... Nb5 {[%clk 0:00:04.7]} 56. Nd2 {[%clk 0:00:12.1]} 56... Nd6 {[%clk
0:00:04.5]} 57. Ne4 {[%clk 0:00:12.3]} 57... Nd5+ {[%clk 0:00:04.8]} 58. Kf3
{[%clk 0:00:11.7]} 58... Nb5 {[%clk 0:00:04]} 59. Nc5 {[%clk 0:00:11.5]} 59...
Nd4+ {[%clk 0:00:04]} 60. Kg3 {[%clk 0:00:10.5]} 60... Nb5 {[%clk 0:00:04.1]}
61. Nc4 {[%clk 0:00:08.8]} 61... Nd6 {[%clk 0:00:03.8]} 62. Nxd6 {[%clk
0:00:08.4]} 62... Kxd6 {[%clk 0:00:04.7]} 63. Ne4+ {[%clk 0:00:08.4]} 63... Ke7
{[%clk 0:00:04.7]} 64. h4 {[%clk 0:00:09]} 64... Kf7 {[%clk 0:00:05.1]} 65. h5
{[%clk 0:00:08.5]} 65... Ne7 {[%clk 0:00:04.2]} 66. Kf3 {[%clk 0:00:09]} 66...
Nd5 {[%clk 0:00:04.1]} 67. Nd6+ {[%clk 0:00:08.9]} 67... Ke7 {[%clk 0:00:03.8]}
68. Nc4 {[%clk 0:00:09.6]} 68... Nc7 {[%clk 0:00:03.4]} 69. Ne5 {[%clk
0:00:10.2]} 69... Ne8 {[%clk 0:00:03.1]} 70. Ke4 {[%clk 0:00:10]} 70... Kf6
{[%clk 0:00:03.5]} 71. Kf3 {[%clk 0:00:10.6]} 71... Nc7 {[%clk 0:00:03.4]} 72.
Nd7+ {[%clk 0:00:10.8]} 72... Kf7 {[%clk 0:00:03.1]} 73. Nc5 {[%clk 0:00:11.3]}
73... Kf6 {[%clk 0:00:03.3]} 74. Ke4 {[%clk 0:00:11.6]} 74... Ne8 {[%clk
0:00:03]} 75. Nd7+ {[%clk 0:00:10.3]} 75... Ke7 {[%clk 0:00:03.3]} 76. Ne5
{[%clk 0:00:11.2]} 76... Nd6+ {[%clk 0:00:03.1]} 77. Kf3 {[%clk 0:00:10.8]}
77... Kf6 {[%clk 0:00:04]} 78. Nd7+ {[%clk 0:00:10]} 78... Ke7 {[%clk
0:00:04.5]} 79. Nc5 {[%clk 0:00:10.5]} 79... Kf6 {[%clk 0:00:05.2]} 80. Ne4+
{[%clk 0:00:09.5]} 80... Nxe4 {[%clk 0:00:05.5]} 81. Kxe4 {[%clk 0:00:09.3]}
81... Kf7 {[%clk 0:00:05.9]} 82. Ke5 {[%clk 0:00:09.5]} 82... Ke7 {[%clk
0:00:06.4]} 83. g5 {[%clk 0:00:10]} 83... Kf7 {[%clk 0:00:05.6]} 84. Kd6 {[%clk
0:00:09]} 84... hxg5 {[%clk 0:00:05.2]} 85. fxg5 {[%clk 0:00:09.9]} 85... e5
{[%clk 0:00:03.5]} 86. Kxe5 {[%clk 0:00:09.9]} 86... Ke7 {[%clk 0:00:03.4]} 87.
Kf5 {[%clk 0:00:10]} 87... Kf7 {[%clk 0:00:03.7]} 88. Ke5 {[%clk 0:00:10.1]}
88... Ke7 {[%clk 0:00:04.1]} 89. g6 {[%clk 0:00:10.7]} 89... Kf8 {[%clk
0:00:03.1]} 90. Ke6 {[%clk 0:00:11.3]} 90... Ke8 {[%clk 0:00:03.5]} 91. h6
{[%clk 0:00:10.5]} 91... gxh6 {[%clk 0:00:02.5]} 92. g7 {[%clk 0:00:11]} 1-0